fUST/lending_fUST_20250815
["ID","MTS","AMOUNT","RATE_DAILY","PERIOD"]
[379225087,1755197446329,-675.65,0.00017877,2]
[379225089,1755197446338,-2962.85,0.00017877,2]
[379225091,1755197446348,-822.62,0.00017877,2]
[379225093,1755197446357,-460.0,0.00017877,2]
[379225095,1755197446366,-531.82,0.00017877,2]
[379225097,1755197446376,-1528.78,0.00017877,2]
[379225099,1755197446385,-460.0,0.00017877,2]
[379225101,1755197446395,-460.0,0.00017877,2]
[379225103,1755197446404,-460.0,0.00017877,2]
[379225105,1755197446414,-151.0,0.00017878,2]
[379225107,1755197446423,-396.823926,0.00017878,2]
[379225109,1755197446432,-396.823926,0.00017878,2]
[379225111,1755197446441,-460.0,0.00017878,2]
[379225113,1755197446451,-151.0,0.00017878,2]
[379225115,1755197446460,-151.0,0.0001788,2]
[379225117,1755197446469,-600.0,0.00017885,2]
[379225119,1755197446478,-151.0,0.000179,2]
[379225121,1755197446487,-151.0,0.000179,2]
[379225123,1755197446497,-238.350241,0.000179,2]
[379225125,1755197446506,-151.0,0.000179,2]
[379225127,1755197446515,-151.0,0.000179,2]
[379225129,1755197446525,-1519.04571002,0.000179,2]
[379225131,1755197446538,-250.0,0.00017907,2]
[379225133,1755197446547,-168.0,0.00017947,2]
[379225135,1755197446556,-151.0,0.00017962,2]
[379225137,1755197446565,-18502.69577858,0.00017962,2]
[379225139,1755197446575,-501.34952174,0.00017973,2]
[379225141,1755197446587,-500.29311373,0.00017973,2]
[379225143,1755197446596,-500.0,0.00017973,2]
[379225145,1755197446605,-500.0,0.00017973,2]
[379225147,1755197446614,-500.0,0.00017973,2]
[379225149,1755197446625,-500.0,0.00017973,2]
[379225150,1755197446635,-500.0,0.00017973,2]
[379225152,1755197446644,-503.76737313,0.00017973,2]
[379225154,1755197446653,-500.0,0.00017973,2]
[379225156,1755197446666,-500.0,0.00017973,2]
[379225158,1755197446676,-500.32990521,0.00017973,2]
[379225160,1755197446685,-500.0,0.00017973,2]
[379225162,1755197446694,-158.92190781,0.00017973,2]
[379225164,1755197446703,-584.38423437,0.00017973,2]
[379225166,1755197446712,-500.0,0.00017973,2]
[379225168,1755197446721,-315.58197336,0.00017973,2]
[379225170,1755197446731,-500.0,0.00017973,2]
[379225172,1755197446740,-500.0,0.00017973,2]
[379225175,1755197446749,-507.43583334,0.00017973,2]
[379225178,1755197446758,-500.0,0.00017973,2]
[379225180,1755197446767,-500.0,0.00017973,2]
[379225182,1755197446776,-500.0,0.00017973,2]
[379225184,1755197446787,-500.0,0.00017973,2]
[379225186,1755197446796,-550.56182312,0.00017973,2]
[379225188,1755197446805,-500.0,0.00017973,2]
[379225190,1755197446814,-151.0,0.00017973,2]
[379225192,1755197446823,-151.0,0.00017973,2]
[379225194,1755197446833,-547.1,0.00017985,2]
[379225196,1755197446842,-294364.29,0.00018,2]
[379225198,1755197446852,-16430.0,0.00018,2]
[379225200,1755197446860,-151.0,0.00018,2]
[379225202,1755197446870,-200.0,0.00018,2]
[379225204,1755197446879,-151.0,0.00018,2]
[379225206,1755197446888,-151.0,0.00018,2]
[379225208,1755197446897,-151.0,0.00018,2]
[379225210,1755197446906,-151.0,0.00018,2]
[379225212,1755197446916,-193.631676,0.00018,2]
[379225214,1755197446925,-151.0,0.00018,2]
[379225216,1755197446934,-396.823926,0.00018,2]
[379225218,1755197446943,-396.823926,0.00018,2]
[379225220,1755197446953,-151.0,0.00018,2]
[379225222,1755197446962,-164.933933,0.00018,2]
[379225224,1755197446972,-164.933933,0.00018,2]
[379225226,1755197446981,-600.0,0.00018071,2]
[379225228,1755197446990,-151.0,0.00018073,2]
[379225230,1755197447000,-1378.0,0.00018076,2]
[379225232,1755197447010,-266.32688977,0.00018082,2]
[379225234,1755197447020,-151.0,0.00018082,2]
[379225236,1755197447031,-151.884947,0.00018082,2]
[379225238,1755197447040,-1510.46604274,0.00018114,2]
[379225240,1755197447049,-460.0,0.00018142,2]
[379225242,1755197447059,-460.0,0.00018142,2]
[379225244,1755197447068,-460.0,0.00018142,2]
[379225246,1755197447077,-460.0,0.00018142,2]
[379225248,1755197447086,-460.0,0.00018142,2]
[379225250,1755197447096,-932.62,0.00018142,2]
[379225252,1755197447105,-758.98,0.00018142,2]
[379225254,1755197447115,-460.0,0.0001815,2]
[379225256,1755197447124,-789.03,0.0001815,2]
[379225258,1755197447134,-1278.43,0.0001815,2]
[379225260,1755197447143,-460.0,0.0001815,2]
[379225262,1755197447152,-1049.16,0.0001815,2]
[379225263,1755197447162,-526.84,0.0001815,2]
[379225265,1755197447171,-460.0,0.0001815,2]
[379225267,1755197447180,-1125.17,0.0001815,2]
[379225269,1755197447190,-467.52,0.0001815,2]
[379225271,1755197447199,-617.46,0.0001815,2]
[379225273,1755197447208,-460.0,0.0001815,2]
[379225275,1755197447218,-1084.56,0.0001815,2]
[379225277,1755197447227,-164.933933,0.00018151,2]
[379225279,1755197447236,-164.933927,0.00018151,2]
[379225281,1755197447245,-1448.41,0.00018151,2]
[379225283,1755197447255,-675.65,0.00018151,2]
[379225285,1755197447264,-2962.85,0.00018151,2]
[379225287,1755197447274,-822.62,0.00018151,2]
[379225289,1755197447284,-460.0,0.00018151,2]
[379225291,1755197447294,-531.82,0.00018151,2]
[379225293,1755197447303,-1528.78,0.00018151,2]
[379225295,1755197447312,-460.0,0.00018151,2]
[379225297,1755197447321,-460.0,0.00018151,2]
[379225299,1755197447331,-460.0,0.00018151,2]
[379225301,1755197447340,-396.823926,0.00018152,2]
[379225303,1755197447349,-396.823926,0.00018152,2]
[379225305,1755197447358,-460.0,0.00018152,2]
[379225307,1755197447367,-151.0,0.00018152,2]
[379225309,1755197447377,-547.1,0.00018155,2]
[379225311,1755197447386,-189.0,0.00018186,2]
[379225313,1755197447395,-168.0,0.00018188,2]
[379225315,1755197447404,-500.0,0.00018191,2]
[379225317,1755197447414,-2200.0,0.00018191,2]
[379225319,1755197447423,-168.0,0.00018195,2]
[379225321,1755197447433,-168.0,0.00018198,2]
[379225323,1755197447442,-255.0,0.00018203,2]
[379225325,1755197447452,-600.0,0.00018257,2]
[379225327,1755197447461,-168.0,0.00018293,2]
[379225329,1755197447471,-151.0,0.000183,2]
[379225331,1755197447480,-151.0,0.000183,2]
[379225333,1755197447489,-500.0,0.00018316,2]
[379225335,1755197447498,-2000.0,0.00018316,2]
[379225337,1755197447508,-500.0,0.00018316,2]
[379225339,1755197447517,-500.0,0.00018316,2]
[379225341,1755197447526,-500.0,0.00018316,2]
[379225343,1755197447536,-547.1,0.00018325,2]
[379225345,1755197447545,-151.0,0.00018347,2]
[379225347,1755197447555,-1378.0,0.0001835,2]
[379225349,1755197447566,-151.0,0.00018356,2]
[379225351,1755197447576,-151.0,0.00018356,2]
[379225353,1755197447589,-179.9820018,0.000184,2]
[379225355,1755197447598,-460.0,0.00018416,2]
[379225357,1755197447607,-460.0,0.00018416,2]
[379225359,1755197447616,-271.82665826,0.00018416,2]
[379225361,1755197447626,-460.0,0.00018416,2]
[379225363,1755197447636,-460.0,0.00018416,2]
[379225365,1755197447646,-932.62,0.00018416,2]
[379225367,1755197447655,-758.98,0.00018416,2]
[379225369,1755197447667,-460.0,0.00018424,2]
[379225371,1755197447677,-789.03,0.00018424,2]
[379225373,1755197447687,-1278.43,0.00018424,2]
[379225375,1755197447696,-460.0,0.00018424,2]
[379225377,1755197447705,-1049.16,0.00018424,2]
[379225379,1755197447714,-526.84,0.00018424,2]
[379225381,1755197447723,-460.0,0.00018424,2]
[379225383,1755197447733,-1125.17,0.00018424,2]
[379225385,1755197447742,-467.52,0.00018424,2]
[379225387,1755197447751,-617.46,0.00018424,2]
[379225389,1755197447760,-319.68349399,0.00018424,2]
[379225391,1755197447770,-1084.56,0.00018424,2]
[379225393,1755197447779,-1448.41,0.00018425,2]
[379225395,1755197447788,-675.65,0.00018425,2]
[379225396,1755197447797,-2962.85,0.00018425,2]
[379225398,1755197447807,-822.62,0.00018425,2]
[379225400,1755197447816,-460.0,0.00018425,2]
[379225402,1755197447826,-531.82,0.00018425,2]
[379225404,1755197447835,-1528.78,0.00018425,2]
[379225406,1755197447844,-460.0,0.00018425,2]
[379225408,1755197447853,-206.23619526,0.00018425,2]
[379225410,1755197447862,-460.0,0.00018425,2]
[379225412,1755197447872,-396.823926,0.00018426,2]
[379225414,1755197447881,-396.823926,0.00018426,2]
[379225416,1755197447890,-460.0,0.00018426,2]
[379225418,1755197447899,-189.0,0.00018429,2]
[379225420,1755197447908,-600.0,0.00018444,2]
[379225422,1755197447918,-200.0,0.00018486,2]
[379225424,1755197447927,-200.0,0.00018486,2]
[379225426,1755197447936,-200.0,0.00018486,2]
[379225428,1755197447945,-200.0,0.00018486,2]
[379225430,1755197447955,-200.0,0.00018486,2]
[379225432,1755197447964,-200.0,0.00018486,2]
[379225434,1755197447974,-200.0,0.00018486,2]
[379225436,1755197447983,-280.0,0.00018486,2]
[379225438,1755197447992,-547.1,0.00018495,2]
[379225440,1755197448001,-49999.97,0.000185,2]
[379225442,1755197448010,-151.0,0.000185,2]
[379225444,1755197448019,-151.0,0.000185,2]
[379225446,1755197448028,-151.0,0.000185,2]
[379225448,1755197448038,-160.25,0.000185,2]
[379225450,1755197448048,-189.023064,0.000185,2]
[379225452,1755197448058,-151.0,0.000185,2]
[379225455,1755197448069,-396.823926,0.000185,2]
[379225456,1755197448078,-396.823918,0.000185,2]
[379225458,1755197448087,-151.0,0.000185,2]
[379225460,1755197448097,-1082.64632921,0.00018521,2]
[379225462,1755197448106,-1000.0,0.00018521,2]
[379225464,1755197448116,-1000.0,0.00018521,2]
[379225479,1755197448229,-1000.0,0.00018521,2]
[379225482,1755197448262,-1000.0,0.00018521,2]
[379225484,1755197448272,-500.0,0.00018521,2]
[379225486,1755197448282,-1000.0,0.00018521,2]
[379225488,1755197448292,-1000.0,0.00018521,2]
[379225490,1755197448301,-500.87172928,0.00018521,2]
[379225492,1755197448310,-1000.0,0.00018521,2]
[379225494,1755197448320,-1000.0,0.00018521,2]
[379225496,1755197448329,-1000.0,0.00018521,2]
[379225498,1755197448338,-4000.0,0.00018527,2]
[379225500,1755197448348,-274.8888299,0.00018532,2]
[379225501,1755197448357,-153.0,0.00018532,2]
[379225503,1755197448366,-306.0,0.00018532,2]
[379225505,1755197448376,-153.0,0.00018532,2]
[379225507,1755197448385,-317.25271,0.00018532,2]
[379225509,1755197448396,-580.2983639,0.00018532,2]
[379225511,1755197448406,-160.6882627,0.00018532,2]
[379225513,1755197448415,-153.0,0.00018532,2]
[379225515,1755197448425,-153.0,0.00018532,2]
[379225517,1755197448435,-160.6882627,0.00018532,2]
[379225520,1755197448445,-500.48,0.0001854,2]
[379225522,1755197448456,-3000.0,0.00018596,2]
[379225523,1755197448465,-1500.0,0.00018616,2]
[379225525,1755197448475,-1378.0,0.00018624,2]
[379225528,1755197448486,-151.0,0.0001863,2]
[379225530,1755197448495,-151.0,0.0001863,2]
[379225532,1755197448504,-600.0,0.0001863,2]
[379225534,1755197448513,-547.1,0.00018666,2]
[379225536,1755197448523,-2079.32,0.00018688,2]
[379225537,1755197448533,-460.0,0.0001869,2]
[379225539,1755197448542,-460.0,0.0001869,2]
[379225542,1755197448552,-460.0,0.0001869,2]
[379225544,1755197448563,-460.0,0.0001869,2]
[379225545,1755197448573,-932.62,0.0001869,2]
[379225546,1755197448583,-758.98,0.0001869,2]
[379225547,1755197448594,-460.0,0.00018698,2]
[379225548,1755197448603,-789.03,0.00018698,2]
[379225549,1755197448613,-1278.43,0.00018698,2]
[379225550,1755197448623,-460.0,0.00018698,2]
[379225551,1755197448632,-1049.16,0.00018698,2]
[379225552,1755197448642,-526.84,0.00018698,2]
[379225553,1755197448652,-460.0,0.00018698,2]
[379225554,1755197448663,-1125.17,0.00018698,2]
[379225555,1755197448673,-467.52,0.00018698,2]
[379225556,1755197448683,-617.46,0.00018698,2]
[379225557,1755197448693,-1084.56,0.00018698,2]
[379225558,1755197448702,-1448.41,0.00018699,2]
[379225559,1755197448712,-675.65,0.00018699,2]
[379225561,1755197448722,-2962.85,0.00018699,2]
[379225563,1755197448732,-822.62,0.00018699,2]
[379225565,1755197448742,-460.0,0.00018699,2]
[379225568,1755197448754,-531.82,0.00018699,2]
[379225570,1755197448764,-1528.78,0.00018699,2]
[379225572,1755197448776,-460.0,0.00018699,2]
[379225574,1755197448787,-460.0,0.00018699,2]
[379225576,1755197448798,-460.0,0.000187,2]
[379225578,1755197448808,-3000.0,0.00018768,2]
[379225580,1755197448818,-151.0,0.000188,2]
[379225582,1755197448827,-849.41062462,0.00018816,2]
[379225584,1755197448837,-547.1,0.00018836,2]
[379225586,1755197448846,-500.0,0.00018855,2]
[379225588,1755197448856,-2500.0,0.00018864,2]
[379225590,1755197448865,-4000.0,0.00018869,2]
[379225592,1755197448875,-151.0,0.00018869,2]
[379225594,1755197448884,-500.0,0.00018888,2]
[379225596,1755197448893,-1378.0,0.00018898,2]
[379225598,1755197448903,-151.0,0.000189,2]
[379225600,1755197448912,-151.0,0.00018904,2]
[379225602,1755197448922,-6000.0,0.00018961,2]
[379225604,1755197448931,-460.0,0.00018964,2]
[379225606,1755197448941,-509.44344843,0.00018964,2]
[379225608,1755197448951,-460.0,0.00018964,2]
[379225610,1755197448960,-460.0,0.00018964,2]
[379225612,1755197448970,-932.62,0.00018964,2]
[379225614,1755197448982,-758.98,0.00018964,2]
[379225616,1755197448992,-460.0,0.00018972,2]
[379225618,1755197449001,-789.03,0.00018972,2]
[379225620,1755197449011,-1278.43,0.00018972,2]
[379225622,1755197449021,-460.0,0.00018972,2]
[379225624,1755197449032,-1049.16,0.00018972,2]
[379225626,1755197449041,-526.84,0.00018972,2]
[379225628,1755197449051,-460.0,0.00018972,2]
[379225630,1755197449060,-1125.17,0.00018972,2]
[379225632,1755197449070,-467.52,0.00018972,2]
[379225634,1755197449080,-617.46,0.00018972,2]
[379225636,1755197449090,-1084.56,0.00018972,2]
[379225638,1755197449100,-1448.41,0.00018973,2]
[379225640,1755197449110,-675.65,0.00018973,2]
[379225642,1755197449119,-2962.85,0.00018973,2]
[379225644,1755197449128,-822.62,0.00018973,2]
[379225646,1755197449137,-460.0,0.00018973,2]
[379225648,1755197449147,-531.82,0.00018973,2]
[379225650,1755197449157,-1528.78,0.00018973,2]
[379225652,1755197449166,-460.0,0.00018973,2]
[379225654,1755197449176,-608.73007007,0.00018973,2]
[379225656,1755197449185,-460.0,0.00018974,2]
[379225658,1755197449195,-168.0,0.00018994,2]
[379225660,1755197449205,-400.43095103,0.00019,2]
[379225662,1755197449215,-223.80317226,0.00019,20]
[379225664,1755197449224,-10871.95952344,0.00019,2]
[379225666,1755197449234,-151.0,0.00019,2]
[379225668,1755197449244,-160.0,0.00019,2]
[379225670,1755197449254,-547.1,0.00019006,2]
[379225672,1755197449264,-206.0,0.00019012,2]
[379225674,1755197449273,-206.0,0.00019012,2]
[379225676,1755197449285,-206.0,0.00019012,2]
[379225678,1755197449294,-206.0,0.00019012,2]
[379225680,1755197449304,-206.0,0.00019012,2]
[379225682,1755197449313,-206.0,0.00019012,2]
[379225684,1755197449323,-206.0,0.00019012,2]
[379225686,1755197449332,-3000.0,0.00019042,2]
[379225688,1755197449342,-151.0,0.00019042,2]
[379225690,1755197449351,-500.0,0.00019068,2]
[379225692,1755197449361,-500.0,0.00019068,2]
[379225694,1755197449370,-500.0,0.00019068,2]
[379225696,1755197449379,-1500.0,0.00019068,2]
[379225698,1755197449389,-500.0,0.00019068,2]
[379225700,1755197449399,-1500.0,0.00019068,2]
[379225702,1755197449409,-4000.0,0.00019082,2]
[379225704,1755197449419,-160.0,0.00019153,3]
[379225706,1755197449428,-1378.0,0.00019172,2]
[379225708,1755197449437,-151.0,0.00019176,2]
[379225710,1755197449447,-151.0,0.00019178,2]
[379225712,1755197449456,-534.43780277,0.00019178,2]
[379225714,1755197449466,-500.0,0.00019178,2]
[379225716,1755197449475,-151.0,0.00019178,2]
[379225718,1755197449485,-151.0,0.00019178,2]
[379225720,1755197449494,-666.0,0.00019178,2]
[379225722,1755197449504,-5000.0,0.00019178,2]
[379225724,1755197449513,-5000.0,0.00019178,2]
[379225726,1755197449524,-5000.0,0.00019178,2]
[379225728,1755197449534,-5000.0,0.00019178,2]
[379225730,1755197449545,-5000.0,0.00019178,2]
[379225732,1755197449555,-5000.0,0.00019178,2]
[379225734,1755197449564,-5000.0,0.00019178,2]
[379225736,1755197449574,-5000.0,0.00019178,2]
[379225738,1755197449587,-5000.0,0.00019178,2]
[379225740,1755197449596,-5000.0,0.00019178,2]
[379225742,1755197449606,-1770.56066734,0.00019178,2]
[379225744,1755197449615,-150.0,0.00019178,2]
[379225746,1755197449625,-3052.63,0.00019188,2]
[379225748,1755197449635,-258.33530749,0.00019233,2]
[379225751,1755197449645,-460.0,0.00019238,2]
[379225752,1755197449654,-460.0,0.00019238,2]
[379225755,1755197449665,-345.58869828,0.00019238,2]
[379225757,1755197449674,-932.62,0.00019238,2]
[379225759,1755197449684,-758.98,0.00019238,2]
[379225761,1755197449693,-460.0,0.00019246,2]
[379225763,1755197449703,-789.03,0.00019246,2]
[379225765,1755197449712,-1278.43,0.00019246,2]
[379225767,1755197449721,-460.0,0.00019246,2]
[379225769,1755197449731,-1049.16,0.00019246,2]
[379225771,1755197449740,-526.84,0.00019246,2]
[379225773,1755197449749,-460.0,0.00019246,2]
[379225775,1755197449759,-1125.17,0.00019246,2]
[379225777,1755197449768,-467.52,0.00019246,2]
[379225779,1755197449777,-617.46,0.00019246,2]
[379225781,1755197449788,-1084.56,0.00019246,2]
[379225783,1755197449798,-1448.41,0.00019247,2]
[379225785,1755197449807,-675.65,0.00019247,2]
[379225787,1755197449816,-2962.85,0.00019247,2]
[379225788,1755197449826,-822.62,0.00019247,2]
[379225791,1755197449835,-460.0,0.00019247,2]
[379225793,1755197449844,-531.82,0.00019247,2]
[379225795,1755197449855,-1528.78,0.00019247,2]
[379225797,1755197449864,-460.0,0.00019247,2]
[379225799,1755197449873,-460.0,0.00019248,2]
[379225801,1755197449883,-460.0,0.00019255,2]
[379225803,1755197449893,-4000.0,0.00019286,2]
[379225805,1755197449902,-1000.0,0.00019321,2]
[379225807,1755197449912,-160.0,0.0001934,2]
[379225809,1755197449921,-153.0,0.00019354,2]
[379225811,1755197449930,-160.6882627,0.00019354,2]
[379225813,1755197449939,-796.0601508,0.00019354,2]
[379225815,1755197449948,-306.0,0.00019354,2]
[379225817,1755197449958,-160.6882627,0.00019354,2]
[379225819,1755197449967,-153.0,0.00019354,2]
[379225821,1755197449976,-580.2983639,0.00019354,2]
[379225823,1755197449985,-314.4346216,0.00019354,2]
[379225825,1755197449994,-153.0,0.00019354,2]
[379225827,1755197450003,-160.6882627,0.00019354,2]
[379225829,1755197450013,-580.2983639,0.00019354,2]
[379225831,1755197450022,-153.0,0.00019354,2]
[379225833,1755197450032,-160.6882627,0.00019354,2]
[379225835,1755197450041,-580.2983639,0.00019354,2]
[379225837,1755197450051,-557.7079178,0.00019354,2]
[379225839,1755197450060,-160.6882627,0.00019354,2]
[379225841,1755197450070,-321.3765254,0.00019354,2]
[379225843,1755197450079,-306.0,0.00019354,2]
[379225845,1755197450088,-160.6882627,0.00019354,2]
[379225847,1755197450098,-153.0,0.00019354,2]
[379225849,1755197450107,-160.6882627,0.00019354,2]
[379225851,1755197450116,-313.8257756,0.00019354,2]
[379225852,1755197450125,-160.6882627,0.00019354,2]
[379225854,1755197450135,-1000.0,0.00019403,2]
[379225857,1755197450144,-3095.96935145,0.00019412,2]
[379225859,1755197450154,-551.42356798,0.00019436,2]
[379225860,1755197450163,-800.0,0.00019439,2]
[379225862,1755197450172,-1378.0,0.00019446,2]
[379225864,1755197450182,-558.00387042,0.00019452,2]
[379225866,1755197450192,-151.0,0.00019452,2]
[379225869,1755197450201,-800.0,0.00019459,2]
[379225870,1755197450211,-500.0,0.00019473,2]
[379225873,1755197450221,-158.535128,0.00019473,2]
[379225875,1755197450230,-500.0,0.00019473,2]
[379225877,1755197450240,-500.0,0.00019473,2]
[379225878,1755197450250,-500.0,0.00019473,2]
[379225881,1755197450261,-500.0,0.00019473,2]
[379225882,1755197450271,-500.0,0.00019473,2]
[379225884,1755197450282,-500.0,0.00019473,2]
[379225887,1755197450295,-500.0,0.00019473,2]
[379225889,1755197450305,-500.0,0.00019473,2]
[379225890,1755197450314,-500.0,0.00019473,2]
[379225893,1755197450325,-500.0,0.00019473,2]
[379225895,1755197450335,-500.0,0.00019473,2]
[379225896,1755197450344,-500.0,0.00019473,2]
[379225898,1755197450354,-500.0,0.00019473,2]
[379225900,1755197450364,-500.0,0.00019473,2]
[379225902,1755197450373,-500.0,0.00019473,2]
[379225904,1755197450383,-500.0,0.00019473,2]
[379225906,1755197450392,-500.0,0.00019473,2]
[379225908,1755197450402,-500.0,0.00019473,2]
[379225910,1755197450411,-500.0,0.00019473,2]
[379225912,1755197450421,-500.0,0.00019473,2]
[379225914,1755197450430,-166.0,0.00019478,2]
[379225916,1755197450439,-166.0,0.00019478,2]
[379225918,1755197450449,-155.0,0.00019478,2]
[379225920,1755197450458,-155.25872627,0.00019478,2]
[379225922,1755197450467,-203.09062633,0.00019478,2]
[379225924,1755197450477,-326.0,0.00019478,2]
[379225926,1755197450487,-326.0,0.00019478,2]
[379225928,1755197450496,-326.0,0.00019478,2]
[379225930,1755197450506,-326.0,0.00019478,2]
[379225932,1755197450515,-326.0,0.00019478,2]
[379225934,1755197450525,-326.0,0.00019478,2]
[379225937,1755197450539,-326.0,0.00019478,2]
[379225939,1755197450548,-160.0,0.00019478,2]
[379225940,1755197450557,-1761.0,0.00019478,2]
[379225942,1755197450566,-160.38048776,0.00019478,2]
[379225944,1755197450575,-1761.0,0.00019478,2]
[379225946,1755197450586,-1761.0,0.00019478,2]
[379225948,1755197450597,-1761.0,0.00019478,2]
[379225950,1755197450606,-1761.0,0.00019478,2]
[379225952,1755197450615,-1761.0,0.00019478,2]
[379225954,1755197450625,-1761.0,0.00019478,2]
[379225956,1755197450634,-1761.0,0.00019478,2]
[379225958,1755197450644,-1761.0,0.00019478,2]
[379225964,1755197450683,-1761.0,0.00019478,2]
[379225966,1755197450692,-1761.0,0.00019478,2]
[379225968,1755197450703,-1761.0,0.00019478,2]
[379225970,1755197450712,-1761.0,0.00019478,2]
[379225972,1755197450721,-1761.0,0.00019478,2]
[379225974,1755197450730,-1761.0,0.00019478,2]
[379225976,1755197450739,-1761.0,0.00019478,2]
[379225978,1755197450748,-155.0,0.00019478,2]
[379225980,1755197450757,-155.0,0.00019478,2]
[379225982,1755197450767,-157.32361995,0.00019478,2]
[379225984,1755197450776,-155.0,0.00019478,2]
[379225985,1755197450787,-1761.0,0.00019478,2]
[379225987,1755197450796,-1761.0,0.00019478,2]
[379225989,1755197450805,-1761.0,0.00019478,2]
[379225991,1755197450815,-1761.0,0.00019478,2]
[379225993,1755197450824,-1761.0,0.00019478,2]
[379225995,1755197450833,-1761.0,0.00019478,2]
[379225997,1755197450842,-1761.0,0.00019478,2]
[379225999,1755197450851,-1761.0,0.00019478,2]
[379226001,1755197450861,-1761.0,0.00019478,2]
[379226003,1755197450870,-1761.0,0.00019478,2]
[379226005,1755197450879,-1761.0,0.00019478,2]
[379226007,1755197450888,-1761.0,0.00019478,2]
[379226009,1755197450897,-1761.0,0.00019478,2]
[379226011,1755197450907,-326.0,0.00019478,2]
[379226013,1755197450917,-1761.0,0.00019478,2]
[379226015,1755197450926,-326.0,0.00019478,2]
[379226017,1755197450935,-1761.0,0.00019478,2]
[379226019,1755197450944,-326.0,0.00019478,2]
[379226021,1755197450954,-917.27446218,0.00019478,2]
[379226023,1755197450963,-1761.0,0.00019478,2]
[379226025,1755197450972,-326.0,0.00019478,2]
[379226027,1755197450981,-1761.0,0.00019478,2]
[379226029,1755197450990,-326.0,0.00019478,2]
[379226031,1755197450999,-326.0,0.00019487,2]
[379226033,1755197451009,-326.0,0.00019487,2]
[379226035,1755197451019,-326.0,0.00019487,2]
[379226037,1755197451028,-326.0,0.00019487,2]
[379226039,1755197451038,-326.0,0.00019487,2]
[379226041,1755197451047,-326.0,0.00019487,2]
[379226043,1755197451056,-326.0,0.00019487,2]
[379226045,1755197451066,-326.0,0.00019487,2]
[379226047,1755197451075,-326.0,0.00019487,2]
[379226049,1755197451084,-326.0,0.00019487,2]
[379226051,1755197451094,-326.0,0.00019487,2]
[379226053,1755197451104,-326.0,0.00019487,2]
[379226055,1755197451113,-326.0,0.00019487,2]
[379226057,1755197451122,-326.0,0.00019487,2]
[379226059,1755197451132,-326.0,0.00019487,2]
[379226061,1755197451141,-326.0,0.00019487,2]
[379226063,1755197451150,-326.0,0.00019487,2]
[379226065,1755197451159,-326.0,0.00019487,2]
[379226067,1755197451169,-326.0,0.00019487,2]
[379226069,1755197451178,-326.0,0.00019487,2]
[379226071,1755197451187,-326.0,0.00019487,2]
[379226073,1755197451196,-326.0,0.00019487,2]
[379226075,1755197451206,-326.0,0.00019487,2]
[379226077,1755197451215,-326.0,0.00019487,2]
[379226079,1755197451224,-326.0,0.00019487,2]
[379226081,1755197451233,-1761.0,0.00019487,2]
[379226083,1755197451242,-326.0,0.00019487,2]
[379226085,1755197451251,-1761.0,0.00019487,2]
[379226087,1755197451261,-326.0,0.00019487,2]